fUSD/lending_fUSD_20250503
["ID","MTS","AMOUNT","RATE_DAILY","PERIOD"]
[359670407,1746238233571,-450.0,0.00019593,2]
[359670408,1746238233581,-450.0,0.00019593,2]
[359670409,1746238233591,-450.0,0.00019593,2]
[359670410,1746238233600,-450.0,0.00019593,2]
[359670411,1746238233610,-450.0,0.00019593,2]
[359670412,1746238233620,-450.0,0.00019593,2]
[359670413,1746238233630,-450.0,0.00019593,2]
[359670414,1746238233640,-450.0,0.00019593,2]
[359670415,1746238233649,-454.74,0.00019593,2]
[359670416,1746238233659,-450.0,0.00019593,2]
[359670417,1746238233669,-450.0,0.00019593,2]
[359670418,1746238233679,-4725.79,0.00019593,2]
[359670419,1746238233689,-450.0,0.00019593,2]
[359670420,1746238233699,-517.71,0.00019593,2]
[359670421,1746238233708,-1072.23,0.00019593,2]
[359670422,1746238233718,-450.0,0.00019593,2]
[359670423,1746238233728,-450.0,0.00019593,2]
[359670424,1746238233738,-450.0,0.00019593,2]
[359670425,1746238233748,-450.0,0.00019593,2]
[359670426,1746238233758,-232.60833685,0.00019593,2]
[359670427,1746238233768,-450.0,0.00019593,2]
[359670428,1746238233777,-1540.23,0.00019593,2]
[359670429,1746238233788,-450.0,0.00019593,2]
[359670430,1746238233797,-594.05162837,0.00019594,2]
[359670431,1746238233806,-450.0,0.00019594,2]
[359670432,1746238233815,-450.0,0.00019594,2]
[359670433,1746238233825,-450.0,0.00019594,2]
[359670434,1746238233833,-450.0,0.00019594,2]
[359670435,1746238233843,-450.0,0.00019594,2]
[359670436,1746238233852,-450.0,0.00019594,2]
[359670437,1746238233862,-450.0,0.00019594,2]
[359670438,1746238233871,-450.0,0.00019594,2]
[359670439,1746238233880,-450.0,0.00019594,2]
[359670440,1746238233890,-450.0,0.00019594,2]
[359670441,1746238233900,-450.0,0.00019594,2]
[359670442,1746238233909,-450.0,0.00019594,2]
[359670443,1746238233918,-450.0,0.00019594,2]
[359670444,1746238233928,-450.0,0.00019594,2]
[359670445,1746238233938,-450.0,0.00019594,2]
[359670446,1746238233947,-450.0,0.00019594,2]
[359670447,1746238233957,-450.0,0.00019594,2]
[359670448,1746238233966,-450.0,0.00019594,2]
[359670449,1746238233975,-450.0,0.00019594,2]
[359670450,1746238233984,-450.0,0.00019594,2]
[359670451,1746238233994,-450.0,0.00019594,2]
[359670452,1746238234003,-450.0,0.00019594,2]
[359670453,1746238234013,-450.0,0.00019594,2]
[359670454,1746238234025,-450.0,0.00019594,2]
[359670455,1746238234035,-450.0,0.00019594,2]
[359670456,1746238234045,-450.0,0.00019594,2]
[359670457,1746238234054,-450.0,0.00019594,2]
[359670458,1746238234065,-450.0,0.00019594,2]
[359670459,1746238234075,-450.0,0.00019594,2]
[359670460,1746238234085,-803.52,0.00019594,2]
[359670461,1746238234094,-450.0,0.00019594,2]
[359670462,1746238234104,-450.0,0.00019594,2]
[359670463,1746238234114,-618.5,0.00019594,2]
[359670464,1746238234124,-450.0,0.00019594,2]
[359670465,1746238234134,-450.0,0.00019594,2]
[359670466,1746238234144,-450.0,0.00019594,2]
[359670467,1746238234153,-450.0,0.00019594,2]
[359670468,1746238234164,-450.0,0.00019594,2]
[359670469,1746238234174,-450.0,0.00019594,2]
[359670470,1746238234183,-450.0,0.00019594,2]
[359670471,1746238234193,-450.0,0.00019594,2]
[359670472,1746238234203,-450.0,0.00019594,2]
[359670473,1746238234213,-552.53110081,0.00019594,2]
[359670474,1746238234223,-241.61395276,0.00019594,2]
[359670475,1746238234233,-450.0,0.00019594,2]
[359670476,1746238234243,-469.27908479,0.00019594,2]
[359670477,1746238234254,-450.0,0.00019594,2]
[359670478,1746238234264,-450.0,0.00019594,2]
[359670479,1746238234274,-450.0,0.00019594,2]
[359670480,1746238234285,-450.0,0.00019594,2]
[359670481,1746238234295,-450.0,0.00019594,2]
[359670482,1746238234305,-450.0,0.00019594,2]
[359670483,1746238234315,-450.0,0.00019594,2]
[359670484,1746238234326,-411.0064675,0.00019594,2]
[359670485,1746238234336,-450.0,0.00019594,2]
[359670486,1746238234346,-450.0,0.00019594,2]
[359670487,1746238234356,-450.0,0.00019594,2]
[359670488,1746238234366,-450.0,0.00019594,2]
[359670489,1746238234376,-450.0,0.00019594,2]
[359670490,1746238234385,-450.0,0.00019594,2]
[359670491,1746238234395,-450.0,0.00019594,2]
[359670492,1746238234405,-475.9336918,0.00019594,2]
[359670493,1746238234415,-450.0,0.00019594,2]
[359670494,1746238234424,-450.0,0.00019594,2]
[359670495,1746238234434,-450.0,0.00019594,2]
[359670496,1746238234444,-450.0,0.00019594,2]
[359670497,1746238234454,-450.0,0.00019594,2]
[359670498,1746238234463,-450.0,0.00019594,2]
[359670499,1746238234472,-450.0,0.00019594,2]
[359670500,1746238234482,-492.92167117,0.00019594,2]
[359670501,1746238234492,-450.0,0.00019594,2]
[359670502,1746238234503,-450.0,0.00019594,2]
[359670503,1746238234512,-450.0,0.00019594,2]
[359670504,1746238234522,-450.0,0.00019594,2]
[359670505,1746238234532,-503.03,0.00019594,2]
[359670506,1746238234541,-450.0,0.00019594,2]
[359670507,1746238234550,-450.0,0.00019594,2]
[359670508,1746238234560,-499.3115457,0.00019594,2]
[359670509,1746238234570,-493.21248035,0.00019594,2]
[359670510,1746238234580,-450.0,0.00019594,2]
[359670511,1746238234589,-450.0,0.00019594,2]
[359670512,1746238234600,-155.13364446,0.00019594,2]
[359670513,1746238234610,-841.1,0.00019594,2]
[359670514,1746238234620,-486.06,0.00019594,2]
[359670515,1746238234630,-516.06,0.00019594,2]
[359670516,1746238234639,-998.17,0.00019594,2]
[359670517,1746238234649,-450.0,0.00019594,2]
[359670518,1746238234659,-450.0,0.00019594,2]
[359670519,1746238234668,-450.0,0.00019594,2]
[359670520,1746238234678,-450.0,0.00019594,2]
[359670521,1746238234687,-388.44833196,0.00019594,2]
[359670522,1746238234696,-450.0,0.00019594,2]
[359670523,1746238234706,-450.0,0.00019594,2]
[359670524,1746238234716,-450.0,0.00019594,2]
[359670525,1746238234725,-450.0,0.00019594,2]
[359670526,1746238234734,-450.0,0.00019594,2]
[359670527,1746238234743,-450.0,0.00019594,2]
[359670528,1746238234752,-5651.18,0.00019594,2]
[359670529,1746238234762,-450.0,0.00019594,2]
[359670530,1746238234771,-611.1,0.00019594,2]
[359670531,1746238234780,-450.0,0.00019594,2]
[359670532,1746238234790,-450.0,0.00019594,2]
[359670533,1746238234800,-450.0,0.00019594,2]
[359670534,1746238234809,-464.23,0.00019594,2]
[359670535,1746238234818,-237.87872418,0.00019594,2]
[359670536,1746238234827,-450.0,0.00019594,2]
[359670537,1746238234836,-450.0,0.00019594,2]
[359670538,1746238234845,-450.0,0.00019594,2]
[359670539,1746238234855,-450.0,0.00019594,2]
[359670540,1746238234865,-450.0,0.00019594,2]
[359670541,1746238234874,-450.0,0.00019594,2]
[359670542,1746238234883,-483.72,0.00019594,2]
[359670543,1746238234892,-450.0,0.00019594,2]
[359670544,1746238234901,-596.08,0.00019594,2]
[359670545,1746238234910,-26468.77974204,0.00019594,2]
[359670546,1746238235213,-4776.07452644,0.00019594,2]
[359670547,1746238235236,-1172.95945071,0.00019594,2]
[359670548,1746238235290,-1714.41628132,0.00019594,2]
[359670551,1746238238321,-500.0,0.00019587,2]
[359670552,1746238238331,-500.0,0.00019587,2]
[359670553,1746238238342,-113.25646616,0.00019587,2]
[359670554,1746238238355,-386.74353384,0.00019587,2]
[359670555,1746238238366,-434.58269561,0.00019587,2]
[359670556,1746238238390,-65.41730439,0.00019587,2]
[359670557,1746238238400,-500.0,0.00019587,2]
[359670558,1746238238410,-500.0,0.00019587,2]
[359670559,1746238238423,-500.0,0.00019587,2]
[359670560,1746238238434,-500.0,0.00019587,2]
[359670561,1746238238444,-500.0,0.00019587,2]
[359670562,1746238238455,-500.0,0.00019587,2]
[359670563,1746238238465,-176.6273312,0.00019587,2]
[359670564,1746238238480,-323.3726688,0.00019587,2]
[359670565,1746238238490,-330.93760146,0.00019587,2]
[359670566,1746238238509,-169.06239854,0.00019587,2]
[359670567,1746238238521,-500.0,0.00019587,2]
[359670568,1746238238531,-500.0,0.00019587,2]
[359670569,1746238238542,-500.0,0.00019587,2]
[359670570,1746238238553,-500.0,0.00019587,2]
[359670571,1746238238563,-500.0,0.00019587,2]
[359670572,1746238238573,-500.0,0.00019587,2]
[359670573,1746238238584,-500.0,0.00019587,2]
[359670574,1746238238595,-500.0,0.00019587,2]
[359670575,1746238238606,-500.0,0.00019587,2]
[359670576,1746238238617,-127.82541694,0.00019587,2]
[359670577,1746238238635,-440.27843685,0.00019587,2]
[359670578,1746238238647,-500.0,0.00019587,2]
[359670579,1746238238657,-10.94516894,0.00019587,2]
[359670580,1746238238674,-489.05483106,0.00019587,2]
[359670581,1746238238685,-500.0,0.00019587,2]
[359670582,1746238238698,-500.0,0.00019587,2]
[359670583,1746238238708,-500.0,0.00019587,2]
[359670584,1746238238719,-500.0,0.00019587,2]
[359670585,1746238238730,-500.0,0.00019587,2]
[359670586,1746238238741,-500.0,0.00019587,2]
[359670587,1746238238752,-500.0,0.00019587,2]
[359670588,1746238238762,-500.0,0.00019587,2]
[359670589,1746238238772,-500.0,0.00019587,2]
[359670590,1746238238784,-500.0,0.00019587,2]
[359670591,1746238238795,-500.0,0.00019587,2]
[359670592,1746238238805,-500.0,0.00019587,2]
[359670593,1746238238816,-500.0,0.00019587,2]
[359670594,1746238238827,-500.0,0.00019587,2]
[359670595,1746238238838,-500.0,0.00019587,2]
[359670596,1746238238849,-500.0,0.00019587,2]
[359670597,1746238238859,-500.0,0.00019587,2]
[359670598,1746238238869,-500.0,0.00019587,2]
[359670599,1746238238880,-500.0,0.00019587,2]
[359670600,1746238238890,-500.0,0.00019587,2]
[359670601,1746238238901,-500.0,0.00019587,2]
[359670602,1746238238912,-7.18377717,0.00019587,2]
[359670603,1746238240570,-492.81622283,0.00019587,2]
[359670604,1746238240581,-500.0,0.00019587,2]
[359670605,1746238240591,-450.0,0.00019593,2]
[359670606,1746238240602,-85016.35999949,0.00019594,2]
[359670607,1746238240612,-450.0,0.00019594,2]
[359670608,1746238240623,-450.0,0.00019594,2]
[359670609,1746238240633,-450.0,0.00019594,2]
[359670610,1746238240643,-521.44,0.00019594,2]
[359670611,1746238240653,-450.0,0.00019594,2]
[359670612,1746238240663,-677.16,0.00019594,2]
[359670613,1746238240674,-450.0,0.00019594,2]
[359670614,1746238240684,-487.02613575,0.00019594,2]
[359670615,1746238240695,-450.0,0.00019594,2]
[359670616,1746238240705,-2188.12,0.00019594,2]
[359670617,1746238240716,-555.71340669,0.00019594,2]
[359670618,1746238240726,-450.0,0.00019594,2]
[359670619,1746238240737,-450.0,0.00019594,2]
[359670620,1746238240748,-450.0,0.00019594,2]
[359670621,1746238240759,-450.0,0.00019594,2]
[359670622,1746238240769,-450.0,0.00019594,2]
[359670623,1746238240779,-450.0,0.00019594,2]
[359670624,1746238240790,-1337.88,0.00019594,2]
[359670625,1746238240801,-546.54,0.00019594,2]
[359670626,1746238240811,-486.12125161,0.00019594,2]
[359670627,1746238240822,-450.0,0.00019594,2]
[359670628,1746238240834,-450.0,0.00019594,2]
[359670629,1746238240844,-450.0,0.00019594,2]
[359670630,1746238240855,-450.0,0.00019594,2]
[359670631,1746238240866,-1724.44,0.00019594,2]
[359670632,1746238240876,-640.0,0.00019594,2]
[359670633,1746238240887,-450.0,0.00019594,2]
[359670634,1746238240898,-450.0,0.00019594,2]
[359670635,1746238240909,-504.14,0.00019594,2]
[359670636,1746238240919,-450.0,0.00019594,2]
[359670637,1746238240929,-477.5,0.00019594,2]
[359670638,1746238240940,-450.0,0.00019594,2]
[359670639,1746238240950,-3122.0,0.00019594,2]
[359670640,1746238240961,-450.0,0.00019594,2]
[359670641,1746238240971,-450.0,0.00019594,2]
[359670642,1746238240981,-450.0,0.00019594,2]
[359670643,1746238240992,-450.0,0.00019594,2]
[359670644,1746238241003,-450.0,0.00019594,2]
[359670645,1746238241013,-450.0,0.00019594,2]
[359670646,1746238241025,-514.08,0.00019594,2]
[359670647,1746238241035,-1457.91,0.00019594,2]
[359670648,1746238241046,-813.85,0.00019594,2]
[359670649,1746238241057,-2941.84,0.00019594,2]
[359670650,1746238241067,-492.77701312,0.00019594,2]
[359670651,1746238241078,-502.93,0.00019594,2]
[359670652,1746238241090,-491.81617772,0.00019594,2]
[359670653,1746238241102,-450.0,0.00019594,2]
[359670654,1746238241118,-576.09,0.00019594,2]
[359670655,1746238241129,-471.32532163,0.00019594,2]
[359670656,1746238241139,-450.0,0.00019594,2]
[359670657,1746238241149,-450.0,0.00019594,2]
[359670658,1746238241159,-563.61,0.00019594,2]
[359670659,1746238241170,-488.1697104,0.00019594,2]
[359670660,1746238241180,-450.0,0.00019594,2]
[359670661,1746238241190,-450.0,0.00019594,2]
[359670662,1746238241200,-450.0,0.00019594,2]
[359670663,1746238241210,-792.59,0.00019594,2]
[359670664,1746238241221,-545.26,0.00019594,2]
[359670665,1746238241231,-270.42016562,0.00019594,2]
[359670666,1746238241241,-800.87,0.00019594,2]
[359670667,1746238241252,-450.0,0.00019594,2]
[359670668,1746238241263,-450.0,0.00019594,2]
[359670669,1746238241273,-450.0,0.00019594,2]
[359670670,1746238241284,-450.0,0.00019594,2]
[359670671,1746238241294,-536.78,0.00019594,2]
[359670672,1746238241304,-3830.22,0.00019594,2]
[359670673,1746238241315,-756.65,0.00019594,2]
[359670674,1746238241326,-200.0,0.00019595,2]
[359670675,1746238241336,-91827.3757,0.00019595,2]
[359670676,1746238241347,-7988.1859,0.00019595,2]
[359670677,1746238241358,-10319.93,0.00019596,2]
[359670678,1746238241369,-5430.6003563,0.00019627,2]
[359670679,1746238241380,-5559.3791232,0.00019629,2]
[359670680,1746238241391,-200.0,0.00019642,2]
[359670681,1746238241402,-170.7068715,0.0001966,2]
[359670682,1746238241413,-6052.22,0.0001966,2]
[359670683,1746238241424,-662.28,0.0001966,2]
[359670684,1746238241435,-450.0,0.0001966,2]
[359670685,1746238241446,-450.0,0.0001966,2]
[359670686,1746238241457,-450.0,0.0001966,2]
[359670687,1746238241467,-450.0,0.0001966,2]
[359670688,1746238241479,-450.0,0.0001966,2]
[359670689,1746238241489,-450.0,0.0001966,2]
[359670690,1746238241500,-450.0,0.0001966,2]
[359670691,1746238241510,-625.67874033,0.0001966,2]
[359670692,1746238241520,-450.0,0.0001966,2]
[359670693,1746238241531,-450.0,0.0001966,2]
[359670694,1746238241541,-498.9,0.0001966,2]
[359670695,1746238241552,-1140.05,0.0001966,2]
[359670696,1746238241562,-1208.01,0.0001966,2]
[359670697,1746238241573,-450.0,0.0001966,2]
[359670698,1746238241584,-450.0,0.0001966,2]
[359670699,1746238241595,-450.0,0.0001966,2]
[359670700,1746238241605,-450.0,0.0001966,2]
[359670701,1746238241615,-518.51,0.0001966,2]
[359670702,1746238241625,-450.0,0.0001966,2]
[359670703,1746238241636,-1019.8,0.0001966,2]
[359670704,1746238241646,-525.45,0.0001966,2]
[359670705,1746238241657,-1560.41,0.0001966,2]
[359670706,1746238241667,-450.0,0.0001966,2]
[359670707,1746238241677,-450.0,0.0001966,2]
[359670708,1746238241688,-450.0,0.0001966,2]
[359670709,1746238241699,-999.0,0.00019671,2]
[359670710,1746238241709,-162.45076163,0.00019673,2]
[359670711,1746238241719,-5430.6003563,0.00019673,2]
[359670712,1746238241729,-5559.3791232,0.00019674,2]
[359670713,1746238241740,-151.0,0.00019682,2]
[359670714,1746238241750,-151.0,0.00019682,2]
[359670715,1746238241760,-668.65185757,0.00019682,2]
[359670716,1746238241771,-450.0,0.00019692,2]
[359670717,1746238241781,-462.55,0.00019692,2]
[359670718,1746238241791,-902.34,0.00019692,2]
[359670719,1746238241801,-450.0,0.00019692,2]
[359670720,1746238241812,-450.0,0.00019692,2]
[359670721,1746238241822,-450.0,0.00019692,2]
[359670722,1746238241832,-535.63,0.00019692,2]
[359670723,1746238241842,-450.0,0.00019693,2]
[359670724,1746238242248,-450.0,0.00019694,2]
[359670725,1746238242268,-647.64,0.00019694,2]
[359670726,1746238242285,-450.0,0.00019694,2]
[359670727,1746238242294,-475.79,0.00019694,2]
[359670728,1746238242303,-450.0,0.00019694,2]
[359670729,1746238242313,-485.27,0.00019694,2]
[359670730,1746238242322,-450.0,0.00019694,2]
[359670731,1746238242331,-450.0,0.00019694,2]
[359670732,1746238242340,-450.0,0.00019694,2]
[359670733,1746238242349,-450.0,0.00019694,2]
[359670734,1746238242358,-450.0,0.00019694,2]
[359670735,1746238242367,-450.0,0.00019694,2]
[359670736,1746238242376,-545.5843728,0.00019694,2]
[359670737,1746238242385,-1031.05,0.00019694,2]
[359670738,1746238242394,-450.0,0.00019694,2]
[359670739,1746238242403,-450.0,0.00019694,2]
[359670740,1746238242414,-205.70456391,0.00019694,2]
[359670741,1746238242422,-543.12,0.00019694,2]
[359670742,1746238242432,-551.47,0.00019694,2]
[359670743,1746238242441,-450.0,0.00019694,2]
[359670744,1746238242451,-477.03160307,0.00019694,2]
[359670745,1746238242460,-1437.18,0.00019694,2]
[359670746,1746238242470,-450.0,0.00019694,2]
[359670747,1746238242479,-450.0,0.00019694,2]
[359670748,1746238242488,-712.59,0.00019694,2]
[359670749,1746238242497,-523.02,0.00019694,2]
[359670750,1746238242506,-450.0,0.00019694,2]
[359670751,1746238242516,-503.9,0.00019694,2]
[359670752,1746238242525,-450.0,0.00019694,2]
[359670753,1746238242534,-232.03197545,0.00019694,2]
[359670754,1746238242543,-551.57,0.00019694,2]
[359670755,1746238242552,-450.0,0.00019694,2]
[359670756,1746238242561,-450.0,0.00019694,2]
[359670757,1746238242571,-699.18,0.00019694,2]
[359670758,1746238242580,-450.0,0.00019694,2]
[359670759,1746238242590,-585.04,0.00019694,2]
[359670760,1746238242598,-450.0,0.00019694,2]
[359670761,1746238242607,-752.0,0.00019694,2]
[359670762,1746238242617,-1720.83,0.00019694,2]
[359670763,1746238242626,-742.65,0.00019694,2]
[359670764,1746238242635,-450.0,0.00019694,2]
[359670765,1746238242645,-585.16,0.00019694,2]
[359670766,1746238242654,-663.64,0.00019694,2]
[359670767,1746238242663,-486.75,0.00019694,2]
[359670768,1746238242672,-755.25,0.00019694,2]
[359670769,1746238242681,-1168.72,0.00019694,2]
[359670770,1746238242690,-450.0,0.00019694,2]
[359670771,1746238242700,-450.0,0.00019694,2]
[359670772,1746238242710,-450.0,0.00019694,2]
[359670773,1746238242719,-450.0,0.00019694,2]
[359670774,1746238242728,-450.0,0.00019694,2]
[359670775,1746238242737,-993.17,0.00019694,2]
[359670776,1746238242746,-450.0,0.00019694,2]
[359670777,1746238242755,-450.0,0.00019694,2]
[359670778,1746238242765,-1432.92,0.00019694,2]
[359670779,1746238242774,-516.14,0.00019694,2]
[359670780,1746238242783,-497.75,0.00019694,2]
[359670781,1746238242792,-604.28,0.00019694,2]
[359670782,1746238242802,-450.0,0.00019694,2]
[359670783,1746238242812,-632.47,0.00019694,2]
[359670784,1746238242821,-1648.11,0.00019694,2]
[359670785,1746238242831,-680.06,0.00019694,2]
[359670786,1746238242840,-4514.32,0.00019694,2]
[359670787,1746238242850,-4105.15,0.00019694,2]
[359670788,1746238242859,-450.0,0.00019694,2]
[359670789,1746238242868,-450.0,0.00019694,2]
[359670790,1746238242878,-450.0,0.00019694,2]
[359670791,1746238242887,-450.0,0.00019694,2]
[359670792,1746238242896,-977.42,0.00019694,2]
[359670793,1746238242906,-450.0,0.00019694,2]
[359670794,1746238242915,-4493.82,0.00019694,2]
[359670795,1746238242924,-450.0,0.00019694,2]
[359670796,1746238242934,-203.12657609,0.00019694,2]
[359670797,1746238242943,-4831.68,0.00019694,2]
[359670798,1746238242953,-450.0,0.00019694,2]
[359670799,1746238242962,-450.0,0.00019694,2]
[359670800,1746238242973,-500.0,0.00019694,2]
[359670801,1746238242982,-26518.59,0.00019694,2]
[359670802,1746238242992,-450.0,0.00019694,2]
[359670803,1746238243001,-1744.7,0.00019694,2]
[359670804,1746238243010,-2480.99,0.00019694,2]
[359670805,1746238243020,-745.52,0.00019694,2]
[359670806,1746238243033,-14870.72,0.00019694,2]
[359670807,1746238243043,-1087.32,0.00019694,2]
[359670808,1746238243052,-450.0,0.00019694,2]
[359670809,1746238243062,-166.88735199,0.00019694,2]
[359670810,1746238243072,-712.48,0.00019694,2]
[359670811,1746238243082,-588.96,0.00019694,2]
[359670812,1746238243091,-2238.11,0.00019694,2]
[359670813,1746238243102,-450.0,0.00019695,2]
[359670814,1746238243112,-450.0,0.00019695,2]
[359670815,1746238243121,-450.0,0.00019695,2]
[359670816,1746238243130,-450.0,0.00019695,2]
[359670817,1746238243139,-450.0,0.00019695,2]
[359670818,1746238243149,-450.0,0.00019695,2]
[359670819,1746238243158,-450.0,0.00019695,2]
[359670820,1746238243167,-450.0,0.00019695,2]
[359670821,1746238243176,-450.0,0.00019695,2]
[359670822,1746238243186,-450.0,0.00019695,2]
[359670823,1746238243195,-450.0,0.00019695,2]
[359670824,1746238243205,-450.0,0.00019695,2]
[359670825,1746238243214,-775.07,0.00019695,2]
[359670826,1746238243224,-450.0,0.00019695,2]
[359670827,1746238243233,-450.0,0.00019695,2]
[359670828,1746238243243,-450.0,0.00019695,2]
[359670829,1746238243253,-450.0,0.00019695,2]
[359670830,1746238243263,-959.31,0.00019695,2]
[359670832,1746238243272,-526.08,0.00019695,2]
[359670833,1746238243281,-450.0,0.00019695,2]
[359670835,1746238243290,-450.0,0.00019695,2]
[359670837,1746238243300,-450.0,0.00019695,2]
[359670838,1746238243310,-761.29,0.00019695,2]
[359670839,1746238243319,-300.0,0.00019695,2]
[359670840,1746238243328,-578.9,0.00019695,2]
[359670841,1746238243338,-466.17,0.00019695,2]
[359670842,1746238243348,-454.53686391,0.00019695,2]
[359670843,1746238243358,-450.0,0.00019695,2]
[359670845,1746238243368,-450.0,0.00019695,2]
[359670847,1746238243377,-450.0,0.00019695,2]
[359670848,1746238243387,-450.0,0.00019695,2]
[359670849,1746238243396,-473.26684363,0.00019695,2]
[359670850,1746238243406,-450.0,0.00019695,2]
[359670852,1746238243415,-450.0,0.00019695,2]
[359670853,1746238243424,-450.0,0.00019695,2]
[359670854,1746238243434,-450.0,0.00019695,2]
[359670855,1746238243443,-450.0,0.00019695,2]
[359670856,1746238243452,-2538.96,0.00019695,2]
[359670857,1746238243462,-450.0,0.00019695,2]
[359670858,1746238243473,-460.4631633,0.00019695,2]
[359670859,1746238243483,-478.51,0.00019695,2]
[359670860,1746238243493,-472.15560293,0.00019695,2]
[359670861,1746238243503,-450.0,0.00019695,2]
[359670862,1746238243513,-450.0,0.00019695,2]
[359670863,1746238243523,-450.0,0.00019695,2]
[359670864,1746238243532,-997.53,0.00019695,2]
[359670865,1746238243542,-450.0,0.00019695,2]
[359670866,1746238243551,-450.0,0.00019695,2]
[359670867,1746238243561,-450.0,0.00019695,2]
[359670868,1746238243570,-450.0,0.00019695,2]
[359670869,1746238243580,-450.96282215,0.00019695,2]
[359670870,1746238243589,-1036.2,0.00019695,2]
[359670871,1746238243598,-450.0,0.00019695,2]
[359670872,1746238243608,-450.0,0.00019695,2]
[359670873,1746238243617,-450.0,0.00019695,2]
[359670874,1746238243626,-450.0,0.00019695,2]
[359670875,1746238243635,-450.0,0.00019695,2]
[359670876,1746238243645,-450.0,0.00019695,2]
[359670877,1746238243655,-450.0,0.00019695,2]
[359670878,1746238243664,-450.0,0.00019695,2]
[359670879,1746238243673,-500.0,0.00019695,2]
[359670880,1746238243682,-452.2335742,0.00019696,2]
[359670881,1746238243691,-450.0,0.00019696,2]
[359670882,1746238243700,-450.0,0.00019696,2]
[359670883,1746238243709,-150.0,0.00019698,2]
[359670884,1746238243718,-500.0,0.00019698,2]
[359670885,1746238243727,-500.0,0.00019698,2]
[359670886,1746238243735,-150.0,0.00019698,2]
[359670887,1746238243744,-500.0,0.00019698,2]
[359670888,1746238243754,-150.0,0.00019698,2]
[359670889,1746238243763,-500.0,0.00019698,2]
[359670890,1746238243772,-500.0,0.00019698,2]
[359670891,1746238243783,-500.0,0.00019698,2]
[359670892,1746238243792,-150.0,0.00019698,2]
[359670893,1746238243802,-500.0,0.00019698,2]
[359670894,1746238243812,-500.0,0.00019698,2]
[359670895,1746238243821,-203.43647274,0.00019698,2]
[359670896,1746238243830,-150.0,0.00019698,2]
[359670897,1746238243839,-500.0,0.00019698,2]
[359670898,1746238243849,-206.06872167,0.00019698,2]
[359670899,1746238243859,-500.0,0.00019698,2]
[359670900,1746238243868,-150.0,0.00019698,2]
[359670901,1746238243877,-500.0,0.00019698,2]
[359670902,1746238243887,-598.099042,0.00019704,2]
[359670903,1746238243897,-420.804023,0.00019704,2]
[359670904,1746238243907,-598.099042,0.00019706,2]
[359670905,1746238243916,-420.804023,0.00019706,2]
[359670906,1746238243926,-598.099042,0.00019708,2]
[359670907,1746238243935,-420.804023,0.00019708,2]
[359670908,1746238243944,-598.099042,0.00019713,2]
[359670910,1746238243953,-420.804023,0.00019713,2]
[359670912,1746238243963,-5430.6003563,0.00019718,2]
[359670914,1746238243972,-1000.0,0.00019719,2]
[359670916,1746238243981,-5559.3791232,0.0001972,2]
[359670918,1746238243989,-598.099042,0.0001972,2]
[359670920,1746238243999,-420.804023,0.0001972,2]